fUSD/lending_fUSD_20251017
["ID","MTS","AMOUNT","RATE_DAILY","PERIOD"]
[391649651,1760716321910,-632.66153591,0.00029315,17]
[391649652,1760716321919,-1320.61,0.00029315,17]
[391649653,1760716321929,-1008.22,0.00029315,17]
[391649654,1760716321939,-772.28,0.00029315,17]
[391649655,1760716321949,-898.24,0.00029315,17]
[391649656,1760716321959,-478.36690388,0.00029315,2]
[391649657,1760716321969,-1222.84,0.00029315,17]
[391649658,1760716321979,-2109.95,0.00029315,17]
[391649659,1760716321989,-751.84,0.00029315,17]
[391649660,1760716321999,-500.0,0.00029315,17]
[391649661,1760716322009,-500.0,0.00029315,17]
[391649662,1760716322019,-1024.46,0.00029315,17]
[391649663,1760716322028,-833.66,0.00029315,17]
[391649664,1760716322038,-1852.0,0.00029315,17]
[391649665,1760716322047,-500.0,0.00029315,17]
[391649666,1760716322057,-2060.09,0.00029315,17]
[391649667,1760716322067,-500.0,0.00029315,17]
[391649668,1760716322077,-529.49,0.00029315,17]
[391649669,1760716322087,-1709.46,0.00029315,17]
[391649670,1760716322096,-712.66,0.00029315,17]
[391649671,1760716322106,-500.0,0.00029315,17]
[391649672,1760716322116,-609.73,0.00029315,17]
[391649673,1760716322129,-1708.64,0.00029315,17]
[391649674,1760716322138,-1031.44,0.00029315,17]
[391649675,1760716322148,-559.04,0.00029315,17]
[391649676,1760716322158,-502.4,0.00029315,17]
[391649677,1760716322168,-500.0,0.00029315,17]
[391649678,1760716322177,-619.47,0.00029315,17]
[391649679,1760716322187,-667.35,0.00029315,17]
[391649680,1760716322196,-1012.0,0.00029315,17]
[391649681,1760716322205,-2301.51,0.00029315,17]
[391649682,1760716322215,-1812.54,0.00029315,17]
[391649683,1760716322225,-843.1,0.00029315,17]
[391649684,1760716322235,-1602.13,0.00029315,17]
[391649685,1760716322244,-746.37,0.00029315,17]
[391649686,1760716322254,-533.82,0.00029315,17]
[391649687,1760716322263,-1139.78,0.00029315,17]
[391649688,1760716322273,-632.01,0.00029315,17]
[391649689,1760716322283,-2068.6,0.00029315,17]
[391649690,1760716322292,-1257.56,0.00029315,17]
[391649691,1760716322301,-500.0,0.00029315,17]
[391649692,1760716322311,-714.32,0.00029315,14]
[391649693,1760716322320,-3563.61,0.00029315,2]
[391649694,1760716322330,-981.38,0.00029315,17]
[391649695,1760716322340,-1192.11,0.00029315,14]
[391649696,1760716322349,-1753.72,0.00029315,17]
[391649697,1760716322358,-652.64,0.00029315,17]
[391649698,1760716322508,-1000.0,0.00029315,17]
[391649699,1760716322519,-820.53,0.00029315,17]
[391649700,1760716322528,-1319.44,0.00029315,17]
[391649701,1760716322537,-1052.39,0.00029315,17]
[391649702,1760716322547,-1787.43,0.00029315,17]
[391649703,1760716322556,-719.82,0.00029315,17]
[391649704,1760716322565,-945.52,0.00029315,17]
[391649705,1760716322574,-1333.69,0.00029315,17]
[391649706,1760716322584,-2493.19,0.00029315,17]
[391649707,1760716322593,-2016.17,0.00029315,17]
[391649708,1760716322603,-4194.44,0.00029315,17]
[391649709,1760716322612,-2045.71,0.00029315,17]
[391649710,1760716322626,-1485.23,0.00029315,17]
[391649711,1760716322635,-2738.94,0.00029315,17]
[391649712,1760716322649,-199.0,0.00029315,13]
[391649713,1760716322659,-774.74,0.00029315,17]
[391649714,1760716322668,-962.9,0.00029315,17]
[391649715,1760716322678,-510.4,0.00029315,17]
[391649716,1760716322687,-500.0,0.00029315,30]
[391649717,1760716322697,-1000.0,0.00029334,2]
[391649718,1760716322706,-159.789826,0.0002934,30]
[391649719,1760716322716,-153.733574,0.0002934,30]
[391649720,1760716322726,-151.107744,0.0002934,30]
[391649721,1760716322736,-1836.796906,0.0002934,30]
[391649722,1760716322746,-2227.955231,0.0002934,30]
[391649723,1760716322755,-1000.0,0.0002934,2]
[391649724,1760716322765,-259.28212388,0.00029381,30]
[391649725,1760716322774,-150.0,0.00029406,2]
[391649726,1760716322784,-200.0,0.00029425,2]
[391649727,1760716322793,-150.0,0.00029427,2]
[391649728,1760716322802,-3000.0,0.00029428,7]
[391649729,1760716322811,-1100.0,0.00029428,7]
[391649730,1760716322821,-1000.0,0.00029469,2]
[391649731,1760716322830,-150.0,0.00029478,2]
[391649732,1760716322840,-693.27,0.00029483,15]
[391649733,1760716322849,-693.27,0.00029483,15]
[391649734,1760716322859,-693.27,0.00029483,15]
[391649735,1760716322872,-693.27,0.00029483,15]
[391649736,1760716322882,-1425.0,0.00029497,2]
[391649737,1760716322891,-1000.0,0.00029498,2]
[391649738,1760716322900,-1425.0,0.00029505,2]
[391649739,1760716322909,-914.33440645,0.00029582,2]
[391649740,1760716322918,-150.0,0.00029584,2]
[391649741,1760716322927,-1327.45,0.00029589,17]
[391649742,1760716322937,-509.64,0.00029589,17]
[391649743,1760716322946,-1391.72,0.00029589,17]
[391649744,1760716322955,-834.3,0.00029589,17]
[391649745,1760716322965,-2254.03,0.00029589,17]
[391649746,1760716322974,-500.0,0.00029589,17]
[391649747,1760716322984,-2608.34,0.00029589,17]
[391649748,1760716322993,-753.74,0.00029589,17]
[391649749,1760716323002,-1761.99,0.00029589,17]
[391649750,1760716323012,-660.97,0.00029589,17]
[391649751,1760716323021,-1320.61,0.00029589,17]
[391649752,1760716323031,-1008.22,0.00029589,17]
[391649753,1760716323041,-772.28,0.00029589,17]
[391649754,1760716323050,-898.24,0.00029589,17]
[391649755,1760716323060,-1222.84,0.00029589,17]
[391649756,1760716323070,-2109.95,0.00029589,17]
[391649757,1760716323080,-751.84,0.00029589,17]
[391649758,1760716323090,-500.0,0.00029589,17]
[391649759,1760716323100,-500.0,0.00029589,17]
[391649760,1760716323110,-1024.46,0.00029589,17]
[391649761,1760716323121,-833.66,0.00029589,17]
[391649762,1760716323132,-1852.0,0.00029589,17]
[391649763,1760716323142,-500.0,0.00029589,17]
[391649764,1760716323152,-2060.09,0.00029589,17]
[391649765,1760716323161,-500.0,0.00029589,17]
[391649766,1760716323172,-529.49,0.00029589,17]
[391649767,1760716323181,-1709.46,0.00029589,17]
[391649768,1760716323191,-712.66,0.00029589,17]
[391649769,1760716323201,-396.09238347,0.00029589,17]
[391649770,1760716323211,-609.73,0.00029589,17]
[391649771,1760716323220,-1708.64,0.00029589,17]
[391649772,1760716323230,-1031.44,0.00029589,17]
[391649773,1760716323240,-559.04,0.00029589,17]
[391649774,1760716323250,-502.4,0.00029589,17]
[391649775,1760716323259,-500.0,0.00029589,17]
[391649776,1760716323270,-619.47,0.00029589,17]
[391649777,1760716323280,-667.35,0.00029589,17]
[391649778,1760716323289,-1012.0,0.00029589,17]
[391649779,1760716323298,-2301.51,0.00029589,17]
[391649780,1760716323308,-1812.54,0.00029589,17]
[391649781,1760716323318,-843.1,0.00029589,17]
[391649782,1760716323328,-1602.13,0.00029589,17]
[391649783,1760716323338,-746.37,0.00029589,17]
[391649784,1760716323347,-533.82,0.00029589,17]
[391649785,1760716323356,-1139.78,0.00029589,17]
[391649786,1760716323366,-632.01,0.00029589,17]
[391649787,1760716323379,-2068.6,0.00029589,17]
[391649788,1760716323388,-1257.56,0.00029589,17]
[391649789,1760716323398,-500.0,0.00029589,17]
[391649790,1760716323407,-714.32,0.00029589,14]
[391649791,1760716323417,-3563.61,0.00029589,2]
[391649792,1760716323426,-981.38,0.00029589,17]
[391649793,1760716323436,-1192.11,0.00029589,14]
[391649794,1760716323445,-1753.72,0.00029589,17]
[391649795,1760716323454,-652.64,0.00029589,17]
[391649796,1760716323463,-1000.0,0.00029589,17]
[391649797,1760716323473,-820.53,0.00029589,17]
[391649798,1760716323482,-1319.44,0.00029589,17]
[391649799,1760716323492,-1052.39,0.00029589,17]
[391649800,1760716323503,-1787.43,0.00029589,17]
[391649801,1760716323512,-719.82,0.00029589,17]
[391649802,1760716323522,-945.52,0.00029589,17]
[391649803,1760716323531,-1333.69,0.00029589,17]
[391649804,1760716323540,-2493.19,0.00029589,17]
[391649805,1760716323550,-2016.17,0.00029589,17]
[391649806,1760716323560,-4194.44,0.00029589,17]
[391649807,1760716323570,-2045.71,0.00029589,17]
[391649808,1760716323580,-1485.23,0.00029589,17]
[391649809,1760716323590,-2738.94,0.00029589,17]
[391649810,1760716323599,-199.0,0.00029589,14]
[391649811,1760716323610,-774.74,0.00029589,17]
[391649812,1760716323622,-962.9,0.00029589,17]
[391649813,1760716323631,-510.4,0.00029589,17]
[391649814,1760716323641,-500.0,0.00029589,30]
[391649815,1760716323654,-2162.27,0.000296,7]
[391649816,1760716323664,-2165.9,0.000296,2]
[391649817,1760716323673,-1425.0,0.00029629,2]
[391649818,1760716323682,-695.27,0.0002963,2]
[391649819,1760716323693,-474.79,0.0002963,2]
[391649820,1760716323702,-695.27,0.0002963,2]
[391649821,1760716323712,-1235.57,0.0002963,2]
[391649822,1760716323722,-474.79,0.0002963,2]
[391649823,1760716323732,-189.18,0.0002963,2]
[391649824,1760716323743,-159.789826,0.00029636,60]
[391649825,1760716323752,-153.733574,0.00029636,60]
[391649826,1760716323761,-1836.796906,0.00029636,60]
[391649827,1760716323770,-151.107744,0.00029636,60]
[391649828,1760716323780,-2227.955231,0.00029636,60]
[391649829,1760716323790,-1425.0,0.00029647,2]
[391649830,1760716323799,-152.86180036,0.00029651,2]
[391649831,1760716323809,-1000.0,0.00029652,2]
[391649832,1760716323819,-1000.0,0.00029667,2]
[391649833,1760716323828,-159.789826,0.00029686,30]
[391649834,1760716323838,-153.733574,0.00029686,30]
[391649835,1760716323848,-151.107744,0.00029686,30]
[391649836,1760716323858,-1836.796906,0.00029686,30]
[391649837,1760716323868,-2227.955231,0.00029686,30]
[391649838,1760716323878,-8151.80787094,0.000297,3]
[391649839,1760716323887,-1100.0,0.00029702,7]
[391649840,1760716323896,-1000.0,0.00029704,2]
[391649841,1760716323906,-150.0,0.00029739,120]
[391649842,1760716323916,-693.27,0.00029757,15]
[391649843,1760716323926,-693.27,0.00029757,15]
[391649844,1760716323935,-1425.0,0.00029778,2]
[391649845,1760716323945,-13137.04,0.000298,7]
[391649846,1760716323955,-1425.0,0.00029812,2]
[391649847,1760716323964,-31569.21252674,0.00029823,2]
[391649848,1760716323974,-1070.15624406,0.00029823,2]
[391649849,1760716323983,-11236.64056255,0.00029825,2]
[391649850,1760716323997,-18116.59159044,0.00029825,2]
[391649851,1760716324007,-1070.15624406,0.00029828,2]
[391649852,1760716324016,-1000.0,0.00029831,2]
[391649853,1760716324026,-1070.15624406,0.00029834,2]
[391649854,1760716324035,-31569.21252674,0.00029838,2]
[391649855,1760716324044,-1070.15624406,0.0002984,2]
[391649856,1760716324054,-10004.831385,0.00029841,2]
[391649857,1760716324064,-10041.65697484,0.00029842,2]
[391649858,1760716324074,-31569.21252674,0.00029844,2]
[391649859,1760716324084,-3450.77935058,0.00029846,2]
[391649860,1760716324093,-18116.59159044,0.00029855,2]
[391649861,1760716324103,-10041.65697484,0.00029855,2]
[391649862,1760716324113,-3450.77935058,0.00029859,2]
[391649863,1760716324126,-1070.15624406,0.00029859,2]
[391649864,1760716324137,-10004.831385,0.00029862,2]
[391649865,1760716324147,-1327.45,0.00029863,17]
[391649866,1760716324157,-1391.72,0.00029863,17]
[391649867,1760716324167,-834.3,0.00029863,17]
[391649868,1760716324177,-2254.03,0.00029863,17]
[391649869,1760716324187,-500.0,0.00029863,17]
[391649870,1760716324197,-2608.34,0.00029863,17]
[391649871,1760716324206,-753.74,0.00029863,17]
[391649872,1760716324216,-1761.99,0.00029863,17]
[391649873,1760716324226,-660.97,0.00029863,17]
[391649874,1760716324236,-1320.61,0.00029863,17]
[391649875,1760716324246,-1008.22,0.00029863,17]
[391649876,1760716324256,-772.28,0.00029863,17]
[391649877,1760716324266,-898.24,0.00029863,17]
[391649878,1760716324276,-1222.84,0.00029863,17]
[391649879,1760716324286,-2109.95,0.00029863,17]
[391649880,1760716324296,-751.84,0.00029863,17]
[391649881,1760716324306,-294.14,0.00029863,17]
[391649882,1760716324316,-382.1,0.00029863,17]
[391649883,1760716324326,-1024.46,0.00029863,17]
[391649884,1760716324336,-833.66,0.00029863,17]
[391649885,1760716324346,-1852.0,0.00029863,17]
[391649886,1760716324356,-238.16809547,0.00029863,17]
[391649887,1760716324366,-2060.09,0.00029863,17]
[391649888,1760716324377,-500.0,0.00029863,17]
[391649889,1760716324387,-529.49,0.00029863,17]
[391649890,1760716324397,-1709.46,0.00029863,17]
[391649891,1760716324406,-712.66,0.00029863,17]
[391649892,1760716324416,-609.73,0.00029863,17]
[391649893,1760716324426,-1708.64,0.00029863,17]
[391649894,1760716324436,-1031.44,0.00029863,17]
[391649895,1760716324447,-559.04,0.00029863,17]
[391649896,1760716324457,-502.4,0.00029863,17]
[391649897,1760716324466,-500.0,0.00029863,17]
[391649898,1760716324476,-619.47,0.00029863,17]
[391649899,1760716324485,-667.35,0.00029863,17]
[391649900,1760716324495,-1012.0,0.00029863,17]
[391649901,1760716324504,-2301.51,0.00029863,17]
[391649902,1760716324515,-1812.54,0.00029863,17]
[391649903,1760716324524,-843.1,0.00029863,17]
[391649904,1760716324535,-1602.13,0.00029863,17]
[391649905,1760716324544,-746.37,0.00029863,17]
[391649906,1760716324554,-533.82,0.00029863,17]
[391649907,1760716324564,-1139.78,0.00029863,17]
[391649908,1760716324573,-632.01,0.00029863,17]
[391649909,1760716324583,-2068.6,0.00029863,17]
[391649910,1760716324593,-1257.56,0.00029863,17]
[391649911,1760716324602,-500.0,0.00029863,17]
[391649912,1760716324611,-714.32,0.00029863,14]
[391649913,1760716324622,-3563.61,0.00029863,2]
[391649914,1760716324631,-981.38,0.00029863,17]
[391649915,1760716324641,-1192.11,0.00029863,14]
[391649916,1760716324655,-1753.72,0.00029863,17]
[391649917,1760716324664,-652.64,0.00029863,17]
[391649918,1760716324802,-150.45237776,0.00029863,17]
[391649919,1760716324811,-820.53,0.00029863,17]
[391649920,1760716324821,-1319.44,0.00029863,17]
[391649921,1760716324830,-1052.39,0.00029863,17]
[391649922,1760716324841,-1787.43,0.00029863,17]
[391649923,1760716324850,-719.82,0.00029863,17]
[391649924,1760716324859,-945.52,0.00029863,17]
[391649925,1760716324870,-1333.69,0.00029863,17]
[391649926,1760716324879,-2493.19,0.00029863,17]
[391649927,1760716324888,-2016.17,0.00029863,17]
[391649928,1760716324898,-4194.44,0.00029863,17]
[391649929,1760716324908,-2045.71,0.00029863,17]
[391649930,1760716324918,-1485.23,0.00029863,17]
[391649931,1760716324928,-2738.94,0.00029863,17]
[391649932,1760716324937,-199.0,0.00029863,15]
[391649933,1760716324947,-774.74,0.00029863,17]
[391649934,1760716324956,-962.9,0.00029863,17]
[391649935,1760716324966,-510.4,0.00029863,17]
[391649936,1760716324976,-500.0,0.00029863,30]
[391649937,1760716324986,-18116.59159044,0.00029864,2]
[391649938,1760716324995,-150.0,0.00029866,120]
[391649939,1760716325004,-1070.15624406,0.00029868,2]
[391649940,1760716325014,-165524.44522987,0.00029875,2]
[391649941,1760716325023,-3903.84608902,0.00029876,2]
[391649942,1760716325033,-1070.15624406,0.00029885,2]
[391649943,1760716325043,-546.7,0.00029891,2]
[391649944,1760716325052,-361.89,0.00029891,2]
[391649945,1760716325062,-336.43,0.00029891,2]
[391649946,1760716325071,-546.7,0.00029891,2]
[391649947,1760716325081,-429.96,0.00029891,2]
[391649948,1760716325090,-168.24,0.00029891,2]
[391649949,1760716325100,-413.23,0.00029891,2]
[391649950,1760716325110,-168.24,0.00029891,2]
[391649951,1760716325120,-168.24,0.00029891,2]
[391649952,1760716325131,-26361.94759936,0.000299,2]
[391649953,1760716325140,-3167.17989568,0.000299,2]
[391649954,1760716325150,-1932.83,0.000299,30]
[391649955,1760716325160,-3903.84608902,0.00029904,2]
[391649956,1760716325169,-1912.69656666,0.00029904,2]
[391649957,1760716325179,-150.92,0.00029904,2]
[391649958,1760716325188,-150.0,0.00029904,2]
[391649959,1760716325198,-1425.0,0.00029905,2]
[391649960,1760716325208,-150.0,0.00029909,2]
[391649961,1760716325217,-1912.69656666,0.00029912,2]
[391649962,1760716325227,-1912.69656666,0.00029916,2]
[391649963,1760716325237,-10041.65697484,0.00029919,2]
[391649964,1760716325247,-10004.831385,0.00029921,2]
[391649965,1760716325257,-52525.36477116,0.00029922,2]
[391649966,1760716325266,-11236.64056255,0.00029926,2]
[391649967,1760716325276,-150.0,0.00029929,30]
[391649968,1760716325286,-2233.0,0.00029929,2]
[391649969,1760716325295,-1425.0,0.00029932,2]
[391649971,1760716325306,-1912.69656666,0.00029933,2]
[391649972,1760716325315,-31569.21252674,0.00029933,2]
[391649973,1760716325325,-151.107744,0.00029936,15]
[391649974,1760716325334,-1836.796906,0.00029936,15]
[391649975,1760716325344,-2227.955231,0.00029936,15]
[391649976,1760716325354,-52525.36477116,0.00029939,2]
[391649977,1760716325363,-1425.0,0.00029942,2]
[391649978,1760716325374,-11236.64056255,0.00029947,2]
[391649979,1760716325383,-1070.15624406,0.00029953,2]
[391649980,1760716325393,-10041.65697484,0.00029953,2]
[391649981,1760716325402,-52525.36477116,0.00029956,2]
[391649982,1760716325412,-165524.44522987,0.00029959,2]
[391649983,1760716325422,-18116.59159044,0.00029959,2]
[391649984,1760716325432,-298.09744742,0.00029959,2]
[391649985,1760716325440,-511.40509983,0.00029963,2]
[391649986,1760716325450,-52525.36477116,0.00029966,2]
[391649987,1760716325459,-3450.77935058,0.0002997,2]
[391649988,1760716325468,-511.40509983,0.0002997,2]
[391649989,1760716325478,-3450.77935058,0.00029972,2]
[391649990,1760716325488,-511.40509983,0.00029972,2]
[391649991,1760716325498,-165524.44522987,0.00029976,2]
[391649992,1760716325508,-10004.831385,0.00029982,2]
[391649993,1760716325517,-511.40509983,0.00029982,2]
[391649994,1760716325527,-165524.44522987,0.00029983,2]
[391649995,1760716325537,-3903.84608902,0.00029985,2]
[391649996,1760716325546,-11236.64056255,0.0002999,2]
[391649997,1760716325555,-3903.84608902,0.00029993,2]
[391649998,1760716325565,-500.0,0.00029999,2]
[391649999,1760716325574,-446.49342671,0.00029999,2]
[391650000,1760716325583,-500.0,0.00029999,2]
[391650001,1760716325592,-428.89276674,0.00029999,2]
[391650002,1760716325602,-212.93000547,0.00029999,2]
[391650003,1760716325611,-500.0,0.00029999,2]
[391650004,1760716325620,-500.0,0.00029999,2]
[391650005,1760716325629,-500.0,0.00029999,2]
[391650006,1760716325639,-500.0,0.00029999,2]
[391650007,1760716325652,-328.95965024,0.00029999,2]
[391650008,1760716325662,-500.0,0.00029999,2]
[391650009,1760716325672,-150.0,0.00029999,2]
[391650010,1760716325681,-159.54727042,0.00029999,2]
[391650011,1760716325691,-410.5354086,0.00029999,2]
[391650012,1760716325700,-600.0,0.0003,120]
[391650013,1760716325710,-600.0,0.0003,120]
[391650014,1760716325720,-246.0,0.0003,120]
[391650015,1760716325730,-252.82336545,0.0003,120]
[391650016,1760716325740,-10286.30560934,0.0003,2]
[391650017,1760716325749,-300.0,0.0003,2]
[391650018,1760716325759,-163.0,0.0003,30]
[391650019,1760716325768,-164.0,0.0003,30]
[391650020,1760716325777,-160.0,0.0003,120]
[391650021,1760716325786,-160.0,0.0003,120]
[391650022,1760716325796,-300.0,0.0003,120]
[391650023,1760716325805,-164.0,0.0003,30]
[391650024,1760716325814,-1001.028631,0.0003,120]
[391650025,1760716325824,-164.31326568,0.0003,2]
[391650026,1760716325833,-929.22914,0.0003,2]
[391650027,1760716325843,-1000.0,0.00030011,2]
[391650028,1760716325853,-693.27,0.00030031,15]
[391650029,1760716325862,-693.27,0.00030031,15]
[391650030,1760716325873,-1425.0,0.00030039,2]
[391650031,1760716325882,-1425.0,0.00030086,2]
[391650032,1760716325892,-1000.0,0.00030097,2]
[391650033,1760716325901,-1000.0,0.00030099,2]
[391650034,1760716325910,-150.0,0.00030106,2]
[391650035,1760716325919,-150.0,0.00030121,2]
[391650036,1760716325928,-477.25384346,0.0003013,5]
[391650037,1760716325937,-1425.0,0.00030135,2]
[391650038,1760716325946,-1327.45,0.00030136,17]
[391650039,1760716325956,-1391.72,0.00030136,17]
[391650040,1760716325964,-834.3,0.00030136,17]
[391650041,1760716325973,-2254.03,0.00030136,17]
[391650042,1760716325983,-500.0,0.00030136,17]
[391650043,1760716325992,-2608.34,0.00030136,17]
[391650044,1760716326001,-753.74,0.00030136,17]
[391650045,1760716326010,-1761.99,0.00030136,17]
[391650046,1760716326020,-660.97,0.00030136,17]
[391650047,1760716326029,-1320.61,0.00030136,17]
[391650049,1760716326039,-1008.22,0.00030136,17]
[391650050,1760716326048,-772.28,0.00030136,17]
[391650051,1760716326057,-1000.0,0.00030136,120]
[391650052,1760716326066,-500.0,0.00030136,120]
[391650053,1760716326075,-898.24,0.00030136,17]
[391650054,1760716326084,-1222.84,0.00030136,17]
[391650055,1760716326094,-2109.95,0.00030136,17]
[391650056,1760716326103,-751.84,0.00030136,17]
[391650057,1760716326113,-1024.46,0.00030136,17]
[391650058,1760716326124,-833.66,0.00030136,17]
[391650059,1760716326133,-1852.0,0.00030136,17]
[391650060,1760716326143,-2060.09,0.00030136,17]
[391650061,1760716326152,-500.0,0.00030136,17]
[391650062,1760716326162,-529.49,0.00030136,17]
[391650063,1760716326171,-1709.46,0.00030136,17]
[391650064,1760716326181,-712.66,0.00030136,17]
[391650065,1760716326195,-609.73,0.00030136,17]
[391650066,1760716326204,-1708.64,0.00030136,17]
[391650067,1760716326213,-1031.44,0.00030136,17]
[391650068,1760716326223,-559.04,0.00030136,17]
[391650069,1760716326233,-502.4,0.00030136,17]
[391650070,1760716326242,-500.0,0.00030136,17]
[391650071,1760716326251,-619.47,0.00030136,17]
[391650072,1760716326260,-667.35,0.00030136,17]
[391650073,1760716326270,-1012.0,0.00030136,17]
[391650074,1760716326280,-2301.51,0.00030136,17]
[391650075,1760716326290,-1812.54,0.00030136,17]
[391650076,1760716326300,-843.1,0.00030136,17]
[391650077,1760716326309,-1602.13,0.00030136,17]
[391650078,1760716326319,-746.37,0.00030136,17]
[391650079,1760716326328,-533.82,0.00030136,17]
[391650080,1760716326338,-1139.78,0.00030136,17]
[391650081,1760716326347,-632.01,0.00030136,17]
[391650082,1760716326356,-2068.6,0.00030136,17]
[391650083,1760716326365,-1257.56,0.00030136,17]
[391650084,1760716326376,-500.0,0.00030136,17]
[391650085,1760716326385,-714.32,0.00030136,14]
[391650086,1760716326395,-3563.61,0.00030136,2]
[391650087,1760716326405,-981.38,0.00030136,17]
[391650088,1760716326414,-1192.11,0.00030136,14]
[391650089,1760716326423,-1753.72,0.00030136,17]
[391650090,1760716326433,-652.64,0.00030136,17]
[391650091,1760716326442,-820.53,0.00030136,17]
[391650092,1760716326451,-1319.44,0.00030136,17]
[391650093,1760716326461,-1052.39,0.00030136,17]
[391650094,1760716326471,-1787.43,0.00030136,17]
[391650095,1760716326480,-719.82,0.00030136,17]
[391650096,1760716326489,-945.52,0.00030136,17]
[391650097,1760716326499,-1333.69,0.00030136,17]
[391650098,1760716326508,-2493.19,0.00030136,17]
[391650099,1760716326517,-2016.17,0.00030136,17]
[391650100,1760716326526,-4822.68,0.00030136,3]
[391650101,1760716326535,-4194.44,0.00030136,17]
[391650102,1760716326546,-2045.71,0.00030136,17]
[391650103,1760716326556,-1485.23,0.00030136,17]
[391650104,1760716326565,-2738.94,0.00030136,17]
[391650105,1760716326574,-199.0,0.00030136,16]
[391650106,1760716326583,-774.74,0.00030136,17]
[391650107,1760716326593,-962.9,0.00030136,17]
[391650108,1760716326602,-510.4,0.00030136,17]
[391650109,1760716326611,-500.0,0.00030137,30]
[391650110,1760716326623,-373.07297731,0.00030142,2]
[391650111,1760716326632,-309.29654756,0.00030142,2]
[391650112,1760716326641,-747.8093786,0.00030144,2]
[391650113,1760716326655,-1000.0,0.00030157,2]
[391650114,1760716326665,-1425.0,0.00030165,2]
[391650115,1760716326675,-2000.0,0.00030172,120]
[391650116,1760716326684,-1000.0,0.00030175,2]
[391650117,1760716326695,-2162.27,0.000302,30]
[391650118,1760716326705,-2165.9,0.000302,2]
[391650119,1760716326715,-1000.0,0.00030203,2]
[391650120,1760716326727,-1000.0,0.00030209,2]
[391650121,1760716326736,-1000.0,0.00030213,2]
[391650122,1760716326746,-150.0,0.00030214,2]
[391650123,1760716326755,-1425.0,0.00030227,2]
[391650124,1760716326895,-2233.0,0.00030238,2]
[391650125,1760716326906,-150.0,0.0003024,120]
[391650126,1760716326916,-1425.0,0.00030245,2]
[391650127,1760716326925,-3000.0,0.0003025,7]
[391650128,1760716326935,-1100.0,0.0003025,7]
[391650129,1760716326944,-1000.0,0.00030256,2]
[391650130,1760716326953,-1000.0,0.00030257,2]
[391650131,1760716326963,-1425.0,0.00030265,2]
[391650132,1760716326972,-150.0,0.0003027,120]
[391650133,1760716326981,-5404.2821674,0.00030271,2]
[391650134,1760716326991,-150.0,0.00030273,2]
[391650135,1760716327002,-493.56837523,0.00030273,2]
[391650136,1760716327012,-1000.0,0.00030273,120]
[391650137,1760716327021,-150.0,0.00030273,2]
[391650138,1760716327030,-4563.51913104,0.00030273,2]
[391650139,1760716327040,-693.27,0.00030305,15]
[391650140,1760716327050,-693.27,0.00030305,15]
[391650141,1760716327059,-150.0,0.00030308,30]
[391650142,1760716327068,-1278.98488824,0.00030308,30]
[391650143,1760716327077,-150.0,0.00030308,30]
[391650144,1760716327086,-1251.69883684,0.00030308,30]
[391650145,1760716327096,-150.0,0.00030308,30]
[391650146,1760716327106,-1438.38882785,0.00030308,30]
[391650147,1760716327115,-150.0,0.0003033,2]
[391650148,1760716327126,-150.0,0.00030348,120]
[391650149,1760716327135,-1425.0,0.00030354,2]
[391650151,1760716327144,-1000.0,0.00030364,2]
[391650152,1760716327155,-450.0,0.00030379,16]
[391650153,1760716327165,-1425.0,0.00030384,2]